fUST/lending_fUST_20250222
["ID","MTS","AMOUNT","RATE_DAILY","PERIOD"]
[354071236,1740222638748,-500.0,0.0001378,2]
[354071238,1740222638757,-500.0,0.0001378,2]
[354071240,1740222638766,-500.0,0.0001378,2]
[354071242,1740222638775,-500.0,0.0001378,2]
[354071244,1740222638784,-500.0,0.0001378,2]
[354071246,1740222638793,-500.0,0.0001378,2]
[354071248,1740222638803,-514.33800532,0.0001378,2]
[354071250,1740222638812,-500.0,0.0001378,2]
[354071252,1740222638821,-500.0,0.0001378,2]
[354071253,1740222638830,-500.0,0.0001378,2]
[354071255,1740222638839,-500.0,0.0001378,2]
[354071257,1740222638848,-500.0,0.0001378,2]
[354071259,1740222638858,-1364.02,0.0001378,2]
[354071260,1740222638867,-500.0,0.0001378,2]
[354071262,1740222638876,-500.0,0.0001378,2]
[354071264,1740222638885,-500.0,0.0001378,2]
[354071265,1740222638895,-500.0,0.0001378,2]
[354071266,1740222638904,-500.0,0.0001378,2]
[354071267,1740222638914,-500.0,0.0001378,2]
[354071268,1740222638923,-500.0,0.0001378,2]
[354071269,1740222638932,-500.0,0.0001378,2]
[354071270,1740222638941,-500.0,0.0001378,2]
[354071271,1740222638951,-640.28,0.0001378,2]
[354071272,1740222638961,-500.0,0.0001378,2]
[354071273,1740222638971,-500.0,0.0001378,2]
[354071274,1740222638980,-500.0,0.0001378,2]
[354071275,1740222638989,-500.0,0.0001378,2]
[354071276,1740222638998,-500.0,0.0001378,2]
[354071277,1740222639007,-500.0,0.0001378,2]
[354071278,1740222639016,-500.0,0.0001378,2]
[354071279,1740222639026,-500.0,0.0001378,2]
[354071280,1740222639035,-500.0,0.0001378,2]
[354071281,1740222639045,-500.0,0.0001378,2]
[354071282,1740222639054,-500.0,0.0001378,2]
[354071283,1740222639063,-1223.6,0.0001378,2]
[354071284,1740222639073,-500.0,0.0001378,2]
[354071285,1740222639082,-500.0,0.0001378,2]
[354071286,1740222639092,-590.61,0.0001378,2]
[354071287,1740222639101,-1262.6,0.0001378,2]
[354071288,1740222639110,-500.0,0.0001378,2]
[354071289,1740222639122,-500.0,0.0001378,2]
[354071290,1740222639131,-500.0,0.0001378,2]
[354071291,1740222639140,-515.94085613,0.0001378,2]
[354071292,1740222639150,-500.0,0.0001378,2]
[354071293,1740222639159,-500.0,0.0001378,2]
[354071294,1740222639168,-701.7444597,0.0001378,2]
[354071295,1740222639303,-3620.72113976,0.0001378,2]
[354071296,1740222639323,-400.0,0.0001378,2]
[354071298,1740222639655,-500.0,0.00013698,2]
[354071299,1740222639664,-500.0,0.00013698,2]
[354071300,1740222639674,-344.35388602,0.0001378,2]
[354071344,1740222640396,-388.96000007,0.0001378,2]
[354071370,1740222640630,-452.91051445,0.0001378,2]
[354071372,1740222640641,-500.0,0.0001378,2]
[354071374,1740222640653,-500.0,0.0001378,2]
[354071376,1740222640663,-500.0,0.0001378,2]
[354071378,1740222640674,-500.0,0.0001378,2]
[354071380,1740222640683,-500.0,0.0001378,2]
[354071382,1740222640693,-500.0,0.0001378,2]
[354071384,1740222640703,-500.0,0.0001378,2]
[354071386,1740222640712,-5433.29,0.0001378,2]
[354071388,1740222640722,-500.0,0.0001378,2]
[354071390,1740222640731,-1735.19,0.0001378,2]
[354071392,1740222640739,-500.0,0.0001378,2]
[354071394,1740222640749,-500.0,0.0001378,2]
[354071396,1740222640758,-500.0,0.0001378,2]
[354071398,1740222640768,-500.0,0.0001378,2]
[354071400,1740222640777,-2769.2,0.0001378,2]
[354071402,1740222640787,-500.0,0.0001378,2]
[354071404,1740222640796,-3922.33,0.0001378,2]
[354071406,1740222640805,-500.0,0.0001378,2]
[354071408,1740222640815,-846.43,0.0001378,2]
[354071410,1740222640825,-500.0,0.0001378,2]
[354071412,1740222640834,-500.0,0.0001378,2]
[354071413,1740222640843,-552.96895371,0.00013824,2]
[354071415,1740222640853,-155.11603313,0.00013845,2]
[354071417,1740222640862,-561.39,0.00013862,2]
[354071419,1740222640871,-561.39,0.00013862,2]
[354071421,1740222640881,-561.39,0.00013862,2]
[354071423,1740222640890,-500.0,0.00013863,2]
[354071425,1740222640900,-500.0,0.00013863,2]
[354071427,1740222640910,-156.28,0.00013863,2]
[354071428,1740222640919,-500.0,0.00013863,2]
[354071429,1740222640929,-500.0,0.00013863,2]
[354071430,1740222640938,-500.0,0.00013863,2]
[354071431,1740222640947,-500.0,0.00013863,2]
[354071432,1740222640956,-500.0,0.00013863,2]
[354071433,1740222640966,-500.0,0.00013863,2]
[354071434,1740222640975,-500.0,0.00013863,2]
[354071435,1740222640985,-500.0,0.00013863,2]
[354071436,1740222640994,-241.2349005,0.00013863,2]
[354071437,1740222641004,-500.0,0.00013863,2]
[354071438,1740222641013,-500.0,0.00013863,2]
[354071439,1740222641022,-500.0,0.00013863,2]
[354071440,1740222641031,-500.0,0.00013863,2]
[354071441,1740222641040,-500.0,0.00013863,2]
[354071442,1740222641049,-500.0,0.00013863,2]
[354071443,1740222641059,-500.0,0.00013863,2]
[354071444,1740222641068,-500.0,0.00013863,2]
[354071445,1740222641077,-500.0,0.00013863,2]
[354071446,1740222641086,-500.0,0.00013863,2]
[354071447,1740222641095,-500.0,0.00013863,2]
[354071448,1740222641104,-500.0,0.00013863,2]
[354071449,1740222641114,-500.0,0.00013863,2]
[354071450,1740222641129,-500.0,0.00013863,2]
[354071451,1740222641138,-500.0,0.00013863,2]
[354071452,1740222641147,-500.0,0.00013863,2]
[354071453,1740222641157,-500.0,0.00013863,2]
[354071454,1740222641168,-546.97640634,0.00013863,2]
[354071455,1740222641177,-509.19,0.00013863,2]
[354071456,1740222641187,-500.0,0.00013863,2]
[354071457,1740222641199,-500.0,0.00013863,2]
[354071458,1740222641208,-500.0,0.00013863,2]
[354071459,1740222641218,-500.0,0.00013863,2]
[354071460,1740222641227,-689.09,0.00013863,2]
[354071461,1740222641236,-1732.87,0.00013863,2]
[354071462,1740222641245,-500.0,0.00013863,2]
[354071463,1740222641254,-500.0,0.00013863,2]
[354071464,1740222641264,-500.0,0.00013863,2]
[354071465,1740222641273,-1364.02,0.00013863,2]
[354071466,1740222641283,-500.0,0.00013863,2]
[354071467,1740222641292,-500.0,0.00013863,2]
[354071468,1740222641301,-500.0,0.00013863,2]
[354071469,1740222641310,-500.0,0.00013863,2]
[354071470,1740222641320,-500.0,0.00013863,2]
[354071471,1740222641329,-500.0,0.00013863,2]
[354071472,1740222641339,-500.0,0.00013863,2]
[354071473,1740222641348,-500.0,0.00013863,2]
[354071474,1740222641358,-500.0,0.00013863,2]
[354071475,1740222641367,-500.0,0.00013863,2]
[354071476,1740222641378,-500.0,0.00013863,2]
[354071477,1740222641388,-500.0,0.00013863,2]
[354071478,1740222641398,-500.0,0.00013863,2]
[354071479,1740222641408,-500.0,0.00013863,2]
[354071480,1740222641418,-500.0,0.00013863,2]
[354071481,1740222641427,-1223.6,0.00013863,2]
[354071482,1740222641438,-590.61,0.00013863,2]
[354071483,1740222641447,-1262.6,0.00013863,2]
[354071484,1740222641457,-500.0,0.00013863,2]
[354071485,1740222641467,-500.0,0.00013863,2]
[354071486,1740222641476,-500.0,0.00013863,2]
[354071487,1740222641486,-500.0,0.00013863,2]
[354071488,1740222641496,-5908.69,0.00013863,2]
[354071489,1740222641505,-500.0,0.00013863,2]
[354071490,1740222641515,-500.0,0.00013863,2]
[354071491,1740222641524,-500.0,0.00013863,2]
[354071492,1740222641534,-500.0,0.00013863,2]
[354071493,1740222641543,-500.0,0.00013863,2]
[354071494,1740222641552,-500.0,0.00013863,2]
[354071495,1740222641562,-500.0,0.00013863,2]
[354071496,1740222641572,-5433.29,0.00013863,2]
[354071497,1740222641581,-500.0,0.00013863,2]
[354071498,1740222641590,-1735.19,0.00013863,2]
[354071499,1740222641600,-500.0,0.00013863,2]
[354071500,1740222641609,-500.0,0.00013863,2]
[354071501,1740222641619,-500.0,0.00013863,2]
[354071502,1740222641629,-2769.2,0.00013863,2]
[354071503,1740222641638,-3922.33,0.00013863,2]
[354071504,1740222641648,-500.0,0.00013863,2]
[354071505,1740222641657,-846.43,0.00013863,2]
[354071506,1740222641666,-500.0,0.00013863,2]
[354071507,1740222641676,-500.0,0.00013863,2]
[354071508,1740222641686,-561.39,0.00013944,2]
[354071509,1740222641695,-561.39,0.00013944,2]
[354071510,1740222641705,-561.39,0.00013944,2]
[354071511,1740222641716,-561.39,0.00013944,2]
[354071512,1740222641725,-561.57,0.00013944,2]
[354071513,1740222641735,-500.0,0.00013945,2]
[354071514,1740222641744,-500.0,0.00013945,2]
[354071515,1740222641754,-500.0,0.00013945,2]
[354071516,1740222641763,-634.29,0.00013945,2]
[354071517,1740222641773,-500.0,0.00013945,2]
[354071518,1740222641782,-500.0,0.00013945,2]
[354071519,1740222641792,-500.0,0.00013945,2]
[354071520,1740222641802,-196.7,0.00013945,2]
[354071521,1740222641812,-500.0,0.00013945,2]
[354071522,1740222641822,-500.0,0.00013945,2]
[354071523,1740222641831,-500.0,0.00013945,2]
[354071524,1740222641841,-500.0,0.00013945,2]
[354071525,1740222641851,-500.0,0.00013945,2]
[354071526,1740222641861,-629.2,0.00013945,2]
[354071527,1740222641870,-500.0,0.00013945,2]
[354071528,1740222641879,-500.0,0.00013945,2]
[354071529,1740222641889,-500.0,0.00013945,2]
[354071530,1740222641899,-262.75,0.00013945,2]
[354071531,1740222641908,-641.26,0.00013945,2]
[354071532,1740222641918,-538.72,0.00013945,2]
[354071533,1740222641927,-500.0,0.00013945,2]
[354071534,1740222641936,-500.0,0.00013945,2]
[354071535,1740222641946,-509.19,0.00013945,2]
[354071536,1740222641956,-500.0,0.00013945,2]
[354071537,1740222641965,-500.0,0.00013945,2]
[354071538,1740222641974,-500.0,0.00013945,2]
[354071539,1740222641984,-500.0,0.00013945,2]
[354071540,1740222641994,-689.09,0.00013945,2]
[354071541,1740222642003,-1732.87,0.00013945,2]
[354071542,1740222642012,-500.0,0.00013945,2]
[354071543,1740222642021,-500.0,0.00013945,2]
[354071544,1740222642031,-500.0,0.00013945,2]
[354071545,1740222642040,-1364.02,0.00013945,2]
[354071546,1740222642050,-427.26,0.00013945,2]
[354071547,1740222642128,-500.0,0.00013945,2]
[354071548,1740222642138,-500.0,0.00013945,2]
[354071549,1740222642148,-500.0,0.00013945,2]
[354071550,1740222642157,-500.0,0.00013945,2]
[354071551,1740222642168,-500.0,0.00013945,2]
[354071552,1740222642177,-500.0,0.00013945,2]
[354071553,1740222642187,-500.0,0.00013945,2]
[354071554,1740222642197,-199.79,0.00013945,2]
[354071555,1740222642207,-500.0,0.00013945,2]
[354071556,1740222642216,-438.91,0.00013945,2]
[354071557,1740222642226,-500.0,0.00013945,2]
[354071558,1740222642235,-500.0,0.00013945,2]
[354071559,1740222642244,-500.0,0.00013945,2]
[354071560,1740222642254,-500.0,0.00013945,2]
[354071561,1740222642263,-1223.6,0.00013945,2]
[354071562,1740222642274,-590.61,0.00013945,2]
[354071563,1740222642283,-1262.6,0.00013945,2]
[354071564,1740222642293,-500.0,0.00013945,2]
[354071565,1740222642302,-500.0,0.00013945,2]
[354071566,1740222642312,-500.0,0.00013945,2]
[354071567,1740222642321,-5908.69,0.00013945,2]
[354071568,1740222642330,-500.0,0.00013945,2]
[354071569,1740222642340,-500.0,0.00013945,2]
[354071570,1740222642349,-500.0,0.00013945,2]
[354071571,1740222642358,-500.0,0.00013945,2]
[354071572,1740222642367,-500.0,0.00013945,2]
[354071573,1740222642377,-5433.29,0.00013945,2]
[354071574,1740222642387,-500.0,0.00013945,2]
[354071575,1740222642397,-1735.19,0.00013945,2]
[354071576,1740222642406,-500.0,0.00013945,2]
[354071577,1740222642416,-500.0,0.00013945,2]
[354071578,1740222642426,-500.0,0.00013945,2]
[354071579,1740222642435,-2769.2,0.00013945,2]
[354071580,1740222642444,-3922.33,0.00013945,2]
[354071581,1740222642454,-500.0,0.00013945,2]
[354071582,1740222642463,-846.43,0.00013945,2]
[354071584,1740222642473,-500.0,0.00013945,2]
[354071585,1740222642482,-500.0,0.00013945,2]
[354071586,1740222642492,-500.0,0.00014027,2]
[354071587,1740222642502,-500.0,0.00014027,2]
[354071588,1740222642511,-500.0,0.00014027,2]
[354071589,1740222642520,-500.0,0.00014027,2]
[354071590,1740222642529,-641.74,0.00014027,2]
[354071591,1740222642538,-500.0,0.00014027,2]
[354071594,1740222642547,-500.0,0.00014027,2]
[354071596,1740222642556,-500.0,0.00014027,2]
[354071598,1740222642566,-500.0,0.00014027,2]
[354071599,1740222642575,-500.0,0.00014027,2]
[354071601,1740222642584,-503.40814756,0.00014027,2]
[354071602,1740222642593,-500.0,0.00014027,2]
[354071605,1740222642602,-500.0,0.00014027,2]
[354071608,1740222642612,-500.0,0.00014027,2]
[354071609,1740222642621,-500.0,0.00014027,2]
[354071610,1740222642631,-589.2,0.00014027,2]
[354071611,1740222642640,-509.19,0.00014027,2]
[354071612,1740222642649,-500.0,0.00014027,2]
[354071613,1740222642659,-500.0,0.00014027,2]
[354071614,1740222642668,-500.0,0.00014027,2]
[354071616,1740222642677,-500.0,0.00014027,2]
[354071618,1740222642686,-689.09,0.00014027,2]
[354071620,1740222642695,-1732.87,0.00014027,2]
[354071622,1740222642705,-500.0,0.00014027,2]
[354071624,1740222642714,-1364.02,0.00014027,2]
[354071626,1740222642723,-500.0,0.00014027,2]
[354071628,1740222642732,-500.0,0.00014027,2]
[354071630,1740222642741,-500.0,0.00014027,2]
[354071631,1740222642751,-500.0,0.00014027,2]
[354071632,1740222642760,-500.0,0.00014027,2]
[354071634,1740222642769,-500.0,0.00014027,2]
[354071637,1740222642779,-282.55,0.00014027,2]
[354071640,1740222642788,-213.8,0.00014027,2]
[354071643,1740222642798,-500.0,0.00014027,2]
[354071645,1740222642807,-500.0,0.00014027,2]
[354071647,1740222642817,-500.0,0.00014027,2]
[354071649,1740222642826,-500.0,0.00014027,2]
[354071651,1740222642835,-1223.6,0.00014027,2]
[354071654,1740222642845,-590.61,0.00014027,2]
[354071657,1740222642854,-1262.6,0.00014027,2]
[354071660,1740222642863,-500.0,0.00014027,2]
[354071663,1740222642873,-500.0,0.00014027,2]
[354071665,1740222642882,-500.0,0.00014027,2]
[354071668,1740222642892,-5908.69,0.00014027,2]
[354071671,1740222642902,-290.79,0.00014027,2]
[354071673,1740222642911,-500.0,0.00014027,2]
[354071675,1740222642920,-500.0,0.00014027,2]
[354071677,1740222642929,-302.95,0.00014027,2]
[354071678,1740222642938,-500.0,0.00014027,2]
[354071679,1740222642949,-5433.29,0.00014027,2]
[354071680,1740222642960,-500.0,0.00014027,2]
[354071681,1740222642971,-1735.19,0.00014027,2]
[354071682,1740222642980,-500.0,0.00014027,2]
[354071683,1740222642989,-500.0,0.00014027,2]
[354071685,1740222642998,-500.0,0.00014027,2]
[354071686,1740222643008,-2769.2,0.00014027,2]
[354071687,1740222643018,-3922.33,0.00014027,2]
[354071688,1740222643027,-500.0,0.00014027,2]
[354071689,1740222643037,-846.43,0.00014027,2]
[354071690,1740222643046,-500.0,0.00014027,2]
[354071691,1740222643056,-500.0,0.00014027,2]
[354071692,1740222643065,-552.96895371,0.0001405,2]
[354071693,1740222643074,-500.0,0.00014109,2]
[354071695,1740222643084,-500.0,0.00014109,2]
[354071696,1740222643094,-500.0,0.00014109,2]
[354071697,1740222643104,-500.0,0.00014109,2]
[354071698,1740222643114,-500.0,0.00014109,2]
[354071699,1740222643127,-500.0,0.00014109,2]
[354071700,1740222643137,-500.0,0.00014109,2]
[354071701,1740222643146,-376.52808004,0.00014109,2]
[354071702,1740222643159,-370.12,0.00014109,2]
[354071703,1740222643169,-500.0,0.00014109,2]
[354071704,1740222643178,-500.0,0.00014109,2]
[354071705,1740222643187,-416.77266261,0.00014109,2]
[354071706,1740222643198,-500.0,0.00014109,2]
[354071707,1740222643209,-509.19,0.00014109,2]
[354071708,1740222643218,-500.0,0.00014109,2]
[354071709,1740222643227,-500.0,0.00014109,2]
[354071710,1740222643237,-500.0,0.00014109,2]
[354071711,1740222643247,-500.0,0.00014109,2]
[354071712,1740222643256,-689.09,0.00014109,2]
[354071713,1740222643265,-1732.87,0.00014109,2]
[354071714,1740222643275,-500.0,0.00014109,2]
[354071715,1740222643284,-1364.02,0.00014109,2]
[354071716,1740222643293,-500.0,0.00014109,2]
[354071717,1740222643302,-500.0,0.00014109,2]
[354071718,1740222643311,-500.0,0.00014109,2]
[354071719,1740222643321,-500.0,0.00014109,2]
[354071720,1740222643330,-500.0,0.00014109,2]
[354071721,1740222643339,-500.0,0.00014109,2]
[354071722,1740222643348,-500.0,0.00014109,2]
[354071723,1740222643357,-500.0,0.00014109,2]
[354071724,1740222643366,-500.0,0.00014109,2]
[354071725,1740222643374,-500.0,0.00014109,2]
[354071726,1740222643383,-1223.6,0.00014109,2]
[354071727,1740222643393,-590.61,0.00014109,2]
[354071728,1740222643403,-1262.6,0.00014109,2]
[354071729,1740222643412,-500.0,0.00014109,2]
[354071730,1740222643421,-500.0,0.00014109,2]
[354071731,1740222643492,-500.0,0.00014109,2]
[354071732,1740222643502,-5908.69,0.00014109,2]
[354071733,1740222643512,-500.0,0.00014109,2]
[354071734,1740222643521,-500.0,0.00014109,2]
[354071735,1740222643531,-164.84982532,0.00014109,2]
[354071736,1740222643540,-5433.29,0.00014109,2]
[354071737,1740222643549,-259.8,0.00014109,2]
[354071738,1740222643559,-1735.19,0.00014109,2]
[354071739,1740222643568,-500.0,0.00014109,2]
[354071740,1740222643577,-500.0,0.00014109,2]
[354071741,1740222643587,-206.01317501,0.00014109,2]
[354071742,1740222643597,-2769.2,0.00014109,2]
[354071743,1740222643606,-3922.33,0.00014109,2]
[354071744,1740222643615,-500.0,0.00014109,2]
[354071745,1740222643624,-846.43,0.00014109,2]
[354071746,1740222643634,-500.0,0.00014109,2]
[354071747,1740222643643,-500.0,0.00014109,2]
[354071748,1740222643653,-420.0,0.00014119,2]
[354071749,1740222643662,-635.34426626,0.00014138,2]
[354071750,1740222643672,-500.0,0.00014173,2]
[354071751,1740222643681,-500.0,0.00014173,2]
[354071752,1740222643690,-500.0,0.00014173,2]
[354071753,1740222643699,-500.0,0.00014191,2]
[354071754,1740222643708,-500.0,0.00014191,2]
[354071755,1740222643717,-500.0,0.00014191,2]
[354071756,1740222643726,-500.0,0.00014191,2]
[354071757,1740222643735,-500.0,0.00014191,2]
[354071758,1740222643744,-500.0,0.00014191,2]
[354071759,1740222643753,-500.0,0.00014191,2]
[354071760,1740222643763,-500.0,0.00014191,2]
[354071761,1740222643772,-500.0,0.00014191,2]
[354071762,1740222643781,-500.0,0.00014191,2]
[354071763,1740222643790,-509.19,0.00014191,2]
[354071764,1740222643800,-500.0,0.00014191,2]
[354071765,1740222643809,-600.01,0.00014191,2]
[354071766,1740222643818,-500.0,0.00014191,2]
[354071767,1740222643828,-500.0,0.00014191,2]
[354071768,1740222643837,-689.09,0.00014191,2]
[354071769,1740222643847,-1732.87,0.00014191,2]
[354071770,1740222643856,-500.0,0.00014191,2]
[354071771,1740222643866,-1364.02,0.00014191,2]
[354071772,1740222643875,-500.0,0.00014191,2]
[354071773,1740222643886,-500.0,0.00014191,2]
[354071774,1740222643896,-500.0,0.00014191,2]
[354071775,1740222643906,-500.0,0.00014191,2]
[354071776,1740222643916,-500.0,0.00014191,2]
[354071777,1740222643925,-500.0,0.00014191,2]
[354071778,1740222643934,-500.0,0.00014191,2]
[354071779,1740222643943,-500.0,0.00014191,2]
[354071780,1740222643952,-500.0,0.00014191,2]
[354071781,1740222643961,-358.82,0.00014191,2]
[354071782,1740222643971,-1223.6,0.00014191,2]
[354071783,1740222643980,-590.61,0.00014191,2]
[354071784,1740222643990,-1262.6,0.00014191,2]
[354071785,1740222643999,-500.0,0.00014191,2]
[354071786,1740222644009,-500.0,0.00014191,2]
[354071787,1740222644018,-500.0,0.00014191,2]
[354071788,1740222644027,-5908.69,0.00014191,2]
[354071789,1740222644036,-500.0,0.00014191,2]
[354071790,1740222644045,-500.0,0.00014191,2]
[354071791,1740222644055,-5433.29,0.00014191,2]
[354071792,1740222644064,-1735.19,0.00014191,2]
[354071793,1740222644074,-500.0,0.00014191,2]
[354071794,1740222644083,-500.0,0.00014191,2]
[354071795,1740222644092,-2769.2,0.00014191,2]
[354071796,1740222644102,-3922.33,0.00014191,2]
[354071797,1740222644111,-595.38,0.00014191,2]
[354071798,1740222644123,-846.43,0.00014191,2]
[354071799,1740222644132,-500.0,0.00014191,2]
[354071800,1740222644141,-500.0,0.00014191,2]
[354071801,1740222644151,-153.0,0.000142,2]
[354071802,1740222644160,-153.0,0.000142,2]
[354071803,1740222644170,-153.0,0.000142,2]
[354071804,1740222644179,-153.0,0.000142,2]
[354071805,1740222644188,-154.796407,0.000142,2]
[354071806,1740222644199,-153.0,0.000142,2]
[354071807,1740222644208,-154.796407,0.000142,2]
[354071808,1740222644219,-153.0,0.000142,2]
[354071809,1740222644228,-154.796407,0.000142,2]
[354071810,1740222644238,-153.0,0.000142,2]
[354071811,1740222644247,-153.0,0.000142,2]
[354071812,1740222644255,-153.0,0.000142,2]
[354071813,1740222644264,-153.0,0.000142,2]
[354071814,1740222644273,-278.450657,0.000142,2]
[354071815,1740222644283,-557.2941539,0.000142,2]
[354071816,1740222644292,-557.2941539,0.000142,2]
[354071817,1740222644302,-557.2941539,0.000142,2]
[354071818,1740222644311,-154.2735528,0.000142,2]
[354071819,1740222644320,-151.0,0.000142,2]
[354071820,1740222644329,-151.0,0.000142,2]
[354071821,1740222644338,-1000.0,0.00014221,2]
[354071822,1740222644347,-506.01145307,0.00014221,2]
[354071823,1740222644357,-1000.0,0.00014221,2]
[354071824,1740222644366,-500.0,0.00014273,2]
[354071825,1740222644375,-500.0,0.00014273,2]
[354071826,1740222644384,-435.0,0.00014273,2]
[354071827,1740222644393,-500.0,0.00014273,2]
[354071828,1740222644402,-500.0,0.00014273,2]
[354071829,1740222644411,-500.0,0.00014273,2]
[354071830,1740222644420,-500.0,0.00014273,2]
[354071831,1740222644430,-500.0,0.00014273,2]
[354071832,1740222644439,-500.0,0.00014273,2]
[354071833,1740222644448,-500.0,0.00014273,2]
[354071834,1740222644457,-509.19,0.00014273,2]
[354071835,1740222644466,-500.0,0.00014273,2]
[354071836,1740222644475,-500.0,0.00014273,2]
[354071837,1740222644484,-500.0,0.00014273,2]
[354071838,1740222644494,-689.09,0.00014273,2]
[354071839,1740222644503,-1732.87,0.00014273,2]
[354071840,1740222644512,-500.0,0.00014273,2]
[354071841,1740222644522,-1364.02,0.00014273,2]
[354071842,1740222644531,-500.0,0.00014273,2]
[354071843,1740222644540,-500.0,0.00014273,2]
[354071844,1740222644549,-179.52,0.00014273,2]
[354071845,1740222644558,-500.0,0.00014273,2]
[354071846,1740222644568,-500.0,0.00014273,2]
[354071847,1740222644577,-500.0,0.00014273,2]
[354071848,1740222644586,-500.0,0.00014273,2]
[354071849,1740222644595,-500.0,0.00014273,2]
[354071850,1740222644604,-500.0,0.00014273,2]
[354071851,1740222644613,-1223.6,0.00014273,2]
[354071852,1740222644623,-590.61,0.00014273,2]
[354071853,1740222644632,-1262.6,0.00014273,2]
[354071854,1740222644642,-500.0,0.00014273,2]
[354071855,1740222644651,-500.0,0.00014273,2]
[354071856,1740222644660,-500.0,0.00014273,2]
[354071857,1740222644731,-5908.69,0.00014273,2]
[354071858,1740222644741,-500.0,0.00014273,2]
[354071859,1740222644750,-500.0,0.00014273,2]
[354071860,1740222644760,-5433.29,0.00014273,2]
[354071861,1740222644770,-1735.19,0.00014273,2]
[354071862,1740222644779,-500.0,0.00014273,2]
[354071863,1740222644788,-500.0,0.00014273,2]
[354071864,1740222644798,-2769.2,0.00014273,2]
[354071865,1740222644808,-3922.33,0.00014273,2]
[354071866,1740222644817,-846.43,0.00014273,2]
[354071867,1740222644827,-500.0,0.00014273,2]
[354071868,1740222644836,-500.0,0.00014273,2]
[354071869,1740222644846,-552.96895371,0.00014276,2]
[354071870,1740222644856,-286.96629842,0.00014289,2]
[354071871,1740222644865,-151.0,0.000143,2]
[354071872,1740222644875,-500.35978952,0.00014321,2]
[354071873,1740222644884,-1000.0,0.00014321,2]
[354071874,1740222644894,-1000.0,0.00014321,2]
[354071875,1740222644903,-157.11897997,0.00014321,2]
[354071876,1740222644913,-343.81377558,0.00014342,2]
[354071877,1740222644922,-500.0,0.00014356,2]
[354071878,1740222644932,-500.0,0.00014356,2]
[354071879,1740222644942,-500.0,0.00014356,2]
[354071880,1740222644951,-500.0,0.00014356,2]
[354071881,1740222644960,-500.0,0.00014356,2]
[354071882,1740222644969,-178.55,0.00014356,2]
[354071883,1740222644978,-500.0,0.00014356,2]
[354071884,1740222644987,-465.36,0.00014356,2]
[354071885,1740222644996,-500.0,0.00014356,2]
[354071886,1740222645006,-509.19,0.00014356,2]
[354071887,1740222645016,-500.0,0.00014356,2]
[354071888,1740222645025,-500.0,0.00014356,2]
[354071889,1740222645034,-500.0,0.00014356,2]
[354071890,1740222645044,-689.09,0.00014356,2]
[354071891,1740222645053,-1732.87,0.00014356,2]
[354071892,1740222645062,-500.0,0.00014356,2]